Workbook

Sheet MDBF Stats
A1: Locomotive Reliability | E1: Faults | J1: Km's | O1: MDBF - 6 Month Rolling Average
A2: Year | B2: Quarter | D2: DL | E2: DX | F2: DF | G2: DC | H2: EF | I2: DL | J2: DX | K2: DF | L2: DC | M2: EF | N2: DL | O2: DX | P2: DF | Q2: DC | R2: EF
A3: FY2018 | B3: Q1 | D3: 14 | E3: 3 | F3: 3 | G3: 1 | H3: 2 | I3: 458,333 | J3: 334,644 | K3: 145,130 | L3: 44,110 | M3: 94,432 | N3: =IFERROR(SUM(I3:I3)/SUM(D3:D3),SUM(I3:I3)) -> 32,738 | O3: =IFERROR(SUM(J3:J3)/SUM(E3:E3),SUM(J3:J3)) -> 111,548 | P3: =IFERROR(SUM(K3:K3)/SUM(F3:F3),SUM(K3:K3)) -> 48,377 | Q3: =IFERROR(SUM(L3:L3)/SUM(G3:G3),SUM(L3:L3)) -> 44,110 | R3: =IFERROR(SUM(M3:M3)/SUM(H3:H3),SUM(M3:M3)) -> 47,216
D4: 9 | E4: 4 | F4: 0 | G4: 0 | H4: 4 | I4: 498,541 | J4: 355,952 | K4: 158,509 | L4: 80,376 | M4: 112,390 | N4: =IFERROR(SUM(I3:I4)/SUM(D3:D4),SUM(I3:I4)) -> 41,603 | O4: =IFERROR(SUM(J3:J4)/SUM(E3:E4),SUM(J3:J4)) -> 98,657 | P4: =IFERROR(SUM(K3:K4)/SUM(F3:F4),SUM(K3:K4)) -> 101,213 | Q4: =IFERROR(SUM(L3:L4)/SUM(G3:G4),SUM(L3:L4)) -> 124,486 | R4: =IFERROR(SUM(M3:M4)/SUM(H3:H4),SUM(M3:M4)) -> 34,470
D5: 11 | E5: 8 | F5: 4 | G5: 2 | H5: 3 | I5: 460,822 | J5: 363,274 | K5: 159,846 | L5: 83,977 | M5: 82,400 | N5: =IFERROR(SUM(I3:I5)/SUM(D3:D5),SUM(I3:I5)) -> 41,697 | O5: =IFERROR(SUM(J3:J5)/SUM(E3:E5),SUM(J3:J5)) -> 70,258 | P5: =IFERROR(SUM(K3:K5)/SUM(F3:F5),SUM(K3:K5)) -> 66,212 | Q5: =IFERROR(SUM(L3:L5)/SUM(G3:G5),SUM(L3:L5)) -> 69,488 | R5: =IFERROR(SUM(M3:M5)/SUM(H3:H5),SUM(M3:M5)) -> 32,136
B6: Q2 | D6: 5 | E6: 7 | F6: 4 | G6: 2 | H6: 2 | I6: 518,820 | J6: 399,936 | K6: 156,915 | L6: 99,388 | M6: 82,066 | N6: =IFERROR(SUM(I3:I6)/SUM(D3:D6),SUM(I3:I6)) -> 49,654 | O6: =IFERROR(SUM(J3:J6)/SUM(E3:E6),SUM(J3:J6)) -> 66,082 | P6: =IFERROR(SUM(K3:K6)/SUM(F3:F6),SUM(K3:K6)) -> 56,400 | Q6: =IFERROR(SUM(L3:L6)/SUM(G3:G6),SUM(L3:L6)) -> 61,570 | R6: =IFERROR(SUM(M3:M6)/SUM(H3:H6),SUM(M3:M6)) -> 33,753
D7: 18 | E7: 6 | F7: 2 | G7: 3 | H7: 4 | I7: 527,310 | J7: 418,625 | K7: 188,458 | L7: 108,548 | M7: 100,593 | N7: =IFERROR(SUM(I3:I7)/SUM(D3:D7),SUM(I3:I7)) -> 43,225 | O7: =IFERROR(SUM(J3:J7)/SUM(E3:E7),SUM(J3:J7)) -> 66,873 | P7: =IFERROR(SUM(K3:K7)/SUM(F3:F7),SUM(K3:K7)) -> 62,220 | Q7: =IFERROR(SUM(L3:L7)/SUM(G3:G7),SUM(L3:L7)) -> 52,050 | R7: =IFERROR(SUM(M3:M7)/SUM(H3:H7),SUM(M3:M7)) -> 31,459
D8: 24 | E8: 5 | F8: 2 | G8: 0 | H8: 5 | I8: 498,066 | J8: 349,983 | K8: 189,508 | L8: 96,843 | M8: 88,249 | N8: =IFERROR(SUM(I3:I8)/SUM(D3:D8),SUM(I3:I8)) -> 36,567 | O8: =IFERROR(SUM(J3:J8)/SUM(E3:E8),SUM(J3:J8)) -> 67,346 | P8: =IFERROR(SUM(K3:K8)/SUM(F3:F8),SUM(K3:K8)) -> 66,558 | Q8: =IFERROR(SUM(L3:L8)/SUM(G3:G8),SUM(L3:L8)) -> 64,155 | R8: =IFERROR(SUM(M3:M8)/SUM(H3:H8),SUM(M3:M8)) -> 28,007
B9: Q3 | D9: 14 | E9: 8 | F9: 7 | G9: 1 | H9: 6 | I9: 490,709 | J9: 377,879 | K9: 204,239 | L9: 108,043 | M9: 75,877 | N9: =IFERROR(SUM(I4:I9)/SUM(D4:D9),SUM(I4:I9)) -> 36,966 | O9: =IFERROR(SUM(J4:J9)/SUM(E4:E9),SUM(J4:J9)) -> 59,622 | P9: =IFERROR(SUM(K4:K9)/SUM(F4:F9),SUM(K4:K9)) -> 55,657 | Q9: =IFERROR(SUM(L4:L9)/SUM(G4:G9),SUM(L4:L9)) -> 72,147 | R9: =IFERROR(SUM(M4:M9)/SUM(H4:H9),SUM(M4:M9)) -> 22,566
D10: 11 | E10: 15 | F10: 5 | G10: 1 | H10: 8 | I10: 464,553 | J10: 348,610 | K10: 178,569 | L10: 102,411 | M10: 69,203 | N10: =IFERROR(SUM(I5:I10)/SUM(D5:D10),SUM(I5:I10)) -> 35,666 | O10: =IFERROR(SUM(J5:J10)/SUM(E5:E10),SUM(J5:J10)) -> 46,088 | P10: =IFERROR(SUM(K5:K10)/SUM(F5:F10),SUM(K5:K10)) -> 44,897 | Q10: =IFERROR(SUM(L5:L10)/SUM(G5:G10),SUM(L5:L10)) -> 66,579 | R10: =IFERROR(SUM(M5:M10)/SUM(H5:H10),SUM(M5:M10)) -> 17,800
D11: 5 | E11: 9 | F11: 1 | G11: 1 | H11: 7 | I11: 536,979 | J11: 371,676 | K11: 191,267 | L11: 112,408 | M11: 67,283 | N11: =IFERROR(SUM(I6:I11)/SUM(D6:D11),SUM(I6:I11)) -> 39,434 | O11: =IFERROR(SUM(J6:J11)/SUM(E6:E11),SUM(J6:J11)) -> 45,334 | P11: =IFERROR(SUM(K6:K11)/SUM(F6:F11),SUM(K6:K11)) -> 52,807 | Q11: =IFERROR(SUM(L6:L11)/SUM(G6:G11),SUM(L6:L11)) -> 78,455 | R11: =IFERROR(SUM(M6:M11)/SUM(H6:H11),SUM(M6:M11)) -> 15,102
B12: Q4 | D12: 14 | E12: 5 | F12: 2 | G12: 1 | H12: 3 | I12: 466,990 | J12: 386,456 | K12: 197,307 | L12: 90,099 | M12: 35,700 | N12: =IFERROR(SUM(I7:I12)/SUM(D7:D12),SUM(I7:I12)) -> 34,705 | O12: =IFERROR(SUM(J7:J12)/SUM(E7:E12),SUM(J7:J12)) -> 46,942 | P12: =IFERROR(SUM(K7:K12)/SUM(F7:F12),SUM(K7:K12)) -> 60,492 | Q12: =IFERROR(SUM(L7:L12)/SUM(G7:G12),SUM(L7:L12)) -> 88,336 | R12: =IFERROR(SUM(M7:M12)/SUM(H7:H12),SUM(M7:M12)) -> 13,240
D13: 15 | E13: 7 | F13: 7 | G13: 1 | H13: 0 | I13: 508,062 | J13: 430,863 | K13: 256,227 | L13: 108,612 | M13: 66,691 | N13: =IFERROR(SUM(I8:I13)/SUM(D8:D13),SUM(I8:I13)) -> 35,727 | O13: =IFERROR(SUM(J8:J13)/SUM(E8:E13),SUM(J8:J13)) -> 46,234 | P13: =IFERROR(SUM(K8:K13)/SUM(F8:F13),SUM(K8:K13)) -> 50,713 | Q13: =IFERROR(SUM(L8:L13)/SUM(G8:G13),SUM(L8:L13)) -> 123,683 | R13: =IFERROR(SUM(M8:M13)/SUM(H8:H13),SUM(M8:M13)) -> 13,897
D14: 11 | E14: 8 | F14: 3 | G14: 1 | H14: 1 | I14: 465,602 | J14: 356,024 | K14: 188,624 | L14: 77,978 | M14: 73,412 | N14: =IFERROR(SUM(I9:I14)/SUM(D9:D14),SUM(I9:I14)) -> 41,899 | O14: =IFERROR(SUM(J9:J14)/SUM(E9:E14),SUM(J9:J14)) -> 43,683 | P14: =IFERROR(SUM(K9:K14)/SUM(F9:F14),SUM(K9:K14)) -> 48,649 | Q14: =IFERROR(SUM(L9:L14)/SUM(G9:G14),SUM(L9:L14)) -> 99,925 | R14: =IFERROR(SUM(M9:M14)/SUM(H9:H14),SUM(M9:M14)) -> 15,527
A15: FY2019 | B15: Q1 | D15: 10 | E15: 8 | F15: 6 | G15: 1 | H15: 1 | I15: 498,984 | J15: 411,784 | K15: 237,604 | L15: 70,306 | M15: 84,032 | N15: =IFERROR(SUM(I10:I15)/SUM(D10:D15),SUM(I10:I15)) -> 44,563 | O15: =IFERROR(SUM(J10:J15)/SUM(E10:E15),SUM(J10:J15)) -> 44,335 | P15: =IFERROR(SUM(K10:K15)/SUM(F10:F15),SUM(K10:K15)) -> 52,067 | Q15: =IFERROR(SUM(L10:L15)/SUM(G10:G15),SUM(L10:L15)) -> 93,636 | R15: =IFERROR(SUM(M10:M15)/SUM(H10:H15),SUM(M10:M15)) -> 19,816
D16: 7 | E16: 9 | F16: 1 | G16: 2 | H16: 0 | I16: 493,074 | J16: 400,780 | K16: 214,869 | L16: 94,132 | M16: 72,284 | N16: =IFERROR(SUM(I11:I16)/SUM(D11:D16),SUM(I11:I16)) -> 47,898 | O16: =IFERROR(SUM(J11:J16)/SUM(E11:E16),SUM(J11:J16)) -> 51,252 | P16: =IFERROR(SUM(K11:K16)/SUM(F11:F16),SUM(K11:K16)) -> 64,295 | Q16: =IFERROR(SUM(L11:L16)/SUM(G11:G16),SUM(L11:L16)) -> 79,076 | R16: =IFERROR(SUM(M11:M16)/SUM(H11:H16),SUM(M11:M16)) -> 33,284
D17: 11 | E17: 7 | F17: 2 | G17: 1 | H17: 0 | I17: 491,846 | J17: 423,383 | K17: 198,877 | L17: 93,368 | M17: 81,926 | N17: =IFERROR(SUM(I12:I17)/SUM(D12:D17),SUM(I12:I17)) -> 43,008 | O17: =IFERROR(SUM(J12:J17)/SUM(E12:E17),SUM(J12:J17)) -> 54,757 | P17: =IFERROR(SUM(K12:K17)/SUM(F12:F17),SUM(K12:K17)) -> 61,596 | Q17: =IFERROR(SUM(L12:L17)/SUM(G12:G17),SUM(L12:L17)) -> 76,356 | R17: =IFERROR(SUM(M12:M17)/SUM(H12:H17),SUM(M12:M17)) -> 82,809
B18: Q2 | D18: 12 | E18: 6 | F18: 3 | G18: 1 | H18: 3 | I18: 562,184 | J18: 448,505 | K18: 204,374 | L18: 98,050 | M18: 84,318 | N18: =IFERROR(SUM(I13:I18)/SUM(D13:D18),SUM(I13:I18)) -> 45,754 | O18: =IFERROR(SUM(J13:J18)/SUM(E13:E18),SUM(J13:J18)) -> 54,919 | P18: =IFERROR(SUM(K13:K18)/SUM(F13:F18),SUM(K13:K18)) -> 59,117 | Q18: =IFERROR(SUM(L13:L18)/SUM(G13:G18),SUM(L13:L18)) -> 77,492 | R18: =IFERROR(SUM(M13:M18)/SUM(H13:H18),SUM(M13:M18)) -> 92,533
D19: 14 | E19: 7 | F19: 4 | G19: 3 | H19: 3 | I19: 540,465 | J19: 393,638 | K19: 202,022 | L19: 103,623 | M19: 83,278 | N19: =IFERROR(SUM(I14:I19)/SUM(D14:D19),SUM(I14:I19)) -> 46,956 | O19: =IFERROR(SUM(J14:J19)/SUM(E14:E19),SUM(J14:J19)) -> 54,091 | P19: =IFERROR(SUM(K14:K19)/SUM(F14:F19),SUM(K14:K19)) -> 65,598 | Q19: =IFERROR(SUM(L14:L19)/SUM(G14:G19),SUM(L14:L19)) -> 59,717 | R19: =IFERROR(SUM(M14:M19)/SUM(H14:H19),SUM(M14:M19)) -> 59,906
D20: 17 | E20: 7 | F20: 0 | G20: 8 | H20: 1 | I20: 494,521 | J20: 373,629 | K20: 177,045 | L20: 112,435 | M20: 68,638 | N20: =IFERROR(SUM(I15:I20)/SUM(D15:D20),SUM(I15:I20)) -> 43,395 | O20: =IFERROR(SUM(J15:J20)/SUM(E15:E20),SUM(J15:J20)) -> 55,721 | P20: =IFERROR(SUM(K15:K20)/SUM(F15:F20),SUM(K15:K20)) -> 77,174 | Q20: =IFERROR(SUM(L15:L20)/SUM(G15:G20),SUM(L15:L20)) -> 35,745 | R20: =IFERROR(SUM(M15:M20)/SUM(H15:H20),SUM(M15:M20)) -> 59,310
B21: Q3 | D21: 19 | E21: 9 | F21: 5 | G21: 4 | H21: 6 | I21: 530,074 | J21: 429,602 | K21: 195,789 | L21: 101,214 | M21: 78,182 | N21: =IFERROR(SUM(I16:I21)/SUM(D16:D21),SUM(I16:I21)) -> 38,902 | O21: =IFERROR(SUM(J16:J21)/SUM(E16:E21),SUM(J16:J21)) -> 54,879 | P21: =IFERROR(SUM(K16:K21)/SUM(F16:F21),SUM(K16:K21)) -> 79,532 | Q21: =IFERROR(SUM(L16:L21)/SUM(G16:G21),SUM(L16:L21)) -> 31,727 | R21: =IFERROR(SUM(M16:M21)/SUM(H16:H21),SUM(M16:M21)) -> 36,048
D22: 24 | E22: 9 | F22: 1 | G22: 5 | H22: 5 | I22: 532,151 | J22: 401,445 | K22: 169,582 | L22: 90,061 | M22: 72,688 | N22: =IFERROR(SUM(I17:I22)/SUM(D17:D22),SUM(I17:I22)) -> 32,487 | O22: =IFERROR(SUM(J17:J22)/SUM(E17:E22),SUM(J17:J22)) -> 54,893 | P22: =IFERROR(SUM(K17:K22)/SUM(F17:F22),SUM(K17:K22)) -> 76,513 | Q22: =IFERROR(SUM(L17:L22)/SUM(G17:G22),SUM(L17:L22)) -> 27,216 | R22: =IFERROR(SUM(M17:M22)/SUM(H17:H22),SUM(M17:M22)) -> 26,057
D23: 20 | E23: 5 | F23: 6 | G23: 3 | H23: 1 | I23: 592,438 | J23: 407,217 | K23: 199,655 | L23: 94,628 | M23: 70,280 | N23: =IFERROR(SUM(I18:I23)/SUM(D18:D23),SUM(I18:I23)) -> 30,678 | O23: =IFERROR(SUM(J18:J23)/SUM(E18:E23),SUM(J18:J23)) -> 57,071 | P23: =IFERROR(SUM(K18:K23)/SUM(F18:F23),SUM(K18:K23)) -> 60,446 | Q23: =IFERROR(SUM(L18:L23)/SUM(G18:G23),SUM(L18:L23)) -> 25,000 | R23: =IFERROR(SUM(M18:M23)/SUM(H18:H23),SUM(M18:M23)) -> 24,073
B24: Q4 | D24: 10 | E24: 3 | F24: 3 | G24: 1 | H24: 0 | I24: 549,255 | J24: 383,057 | K24: 187,266 | L24: 70,268 | M24: 63,723 | N24: =IFERROR(SUM(I19:I24)/SUM(D19:D24),SUM(I19:I24)) -> 31,143 | O24: =IFERROR(SUM(J19:J24)/SUM(E19:E24),SUM(J19:J24)) -> 59,715 | P24: =IFERROR(SUM(K19:K24)/SUM(F19:F24),SUM(K19:K24)) -> 59,545 | Q24: =IFERROR(SUM(L19:L24)/SUM(G19:G24),SUM(L19:L24)) -> 23,843 | R24: =IFERROR(SUM(M19:M24)/SUM(H19:H24),SUM(M19:M24)) -> 27,299
D25: 22 | E25: 18 | F25: 7 | G25: 3 | H25: 0 | I25: 619,268 | J25: 426,416 | K25: 193,627 | L25: 67,048 | M25: 75,598 | N25: =IFERROR(SUM(I20:I25)/SUM(D20:D25),SUM(I20:I25)) -> 29,622 | O25: =IFERROR(SUM(J20:J25)/SUM(E20:E25),SUM(J20:J25)) -> 47,478 | P25: =IFERROR(SUM(K20:K25)/SUM(F20:F25),SUM(K20:K25)) -> 51,044 | Q25: =IFERROR(SUM(L20:L25)/SUM(G20:G25),SUM(L20:L25)) -> 22,319 | R25: =IFERROR(SUM(M20:M25)/SUM(H20:H25),SUM(M20:M25)) -> 33,008
D26: 11 | E26: 16 | F26: 0 | G26: 1 | H26: 1 | I26: 557,283 | J26: 363,849 | K26: 185,697 | L26: 69,721 | M26: 57,216 | N26: =IFERROR(SUM(I21:I26)/SUM(D21:D26),SUM(I21:I26)) -> 31,891 | O26: =IFERROR(SUM(J21:J26)/SUM(E21:E26),SUM(J21:J26)) -> 40,193 | P26: =IFERROR(SUM(K21:K26)/SUM(F21:F26),SUM(K21:K26)) -> 51,437 | Q26: =IFERROR(SUM(L21:L26)/SUM(G21:G26),SUM(L21:L26)) -> 28,996 | R26: =IFERROR(SUM(M21:M26)/SUM(H21:H26),SUM(M21:M26)) -> 32,130
A27: FY2020 | B27: Q1 | D27: 8 | E27: 8 | F27: 0 | G27: 2 | H27: 1 | I27: 624,204 | J27: 383,821 | K27: 194,020 | L27: 94,328 | M27: 57,105 | N27: =IFERROR(SUM(I22:I27)/SUM(D22:D27),SUM(I22:I27)) -> 36,575 | O27: =IFERROR(SUM(J22:J27)/SUM(E22:E27),SUM(J22:J27)) -> 40,098 | P27: =IFERROR(SUM(K22:K27)/SUM(F22:F27),SUM(K22:K27)) -> 66,462 | Q27: =IFERROR(SUM(L22:L27)/SUM(G22:G27),SUM(L22:L27)) -> 32,404 | R27: =IFERROR(SUM(M22:M27)/SUM(H22:H27),SUM(M22:M27)) -> 49,576
D28: 8 | E28: 5 | F28: 3 | G28: 3 | H28: 4 | I28: 590,704 | J28: 383,587 | K28: 197,798 | L28: 83,645 | M28: 19,524 | N28: =IFERROR(SUM(I23:I28)/SUM(D23:D28),SUM(I23:I28)) -> 44,723 | O28: =IFERROR(SUM(J23:J28)/SUM(E23:E28),SUM(J23:J28)) -> 42,690 | P28: =IFERROR(SUM(K23:K28)/SUM(F23:F28),SUM(K23:K28)) -> 60,951 | Q28: =IFERROR(SUM(L23:L28)/SUM(G23:G28),SUM(L23:L28)) -> 36,895 | R28: =IFERROR(SUM(M23:M28)/SUM(H23:H28),SUM(M23:M28)) -> 49,064
D29: 7 | E29: 8 | F29: 1 | G29: 3 | H29: 4 | I29: 589,370 | J29: 411,812 | K29: 196,701 | L29: 96,671 | M29: 54,082 | N29: =IFERROR(SUM(I24:I29)/SUM(D24:D29),SUM(I24:I29)) -> 53,486 | O29: =IFERROR(SUM(J24:J29)/SUM(E24:E29),SUM(J24:J29)) -> 40,561 | P29: =IFERROR(SUM(K24:K29)/SUM(F24:F29),SUM(K24:K29)) -> 82,508 | Q29: =IFERROR(SUM(L24:L29)/SUM(G24:G29),SUM(L24:L29)) -> 37,052 | R29: =IFERROR(SUM(M24:M29)/SUM(H24:H29),SUM(M24:M29)) -> 32,725
B30: Q2 | D30: 12 | E30: 14 | F30: 4 | G30: 1 | H30: 2 | I30: 645,784 | J30: 403,173 | K30: 180,078 | L30: 105,977 | M30: 59,032 | N30: =IFERROR(SUM(I25:I30)/SUM(D25:D30),SUM(I25:I30)) -> 53,333 | O30: =IFERROR(SUM(J25:J30)/SUM(E25:E30),SUM(J25:J30)) -> 34,386 | P30: =IFERROR(SUM(K25:K30)/SUM(F25:F30),SUM(K25:K30)) -> 76,528 | Q30: =IFERROR(SUM(L25:L30)/SUM(G25:G30),SUM(L25:L30)) -> 39,799 | R30: =IFERROR(SUM(M25:M30)/SUM(H25:H30),SUM(M25:M30)) -> 26,880
D31: 19 | E31: 9 | F31: 6 | G31: 1 | H31: 6 | I31: 636,308 | J31: 398,913 | K31: 188,490 | L31: 90,717 | M31: 70,317 | N31: =IFERROR(SUM(I26:I31)/SUM(D26:D31),SUM(I26:I31)) -> 56,056 | O31: =IFERROR(SUM(J26:J31)/SUM(E26:E31),SUM(J26:J31)) -> 39,086 | P31: =IFERROR(SUM(K26:K31)/SUM(F26:F31),SUM(K26:K31)) -> 81,627 | Q31: =IFERROR(SUM(L26:L31)/SUM(G26:G31),SUM(L26:L31)) -> 49,187 | R31: =IFERROR(SUM(M26:M31)/SUM(H26:H31),SUM(M26:M31)) -> 17,626
D32: 12 | E32: 13 | F32: 5 | G32: 0 | H32: 3 | I32: 578,538 | J32: 351,326 | K32: 170,102 | L32: 76,793 | M32: 57,368 | N32: =IFERROR(SUM(I27:I32)/SUM(D27:D32),SUM(I27:I32)) -> 55,529 | O32: =IFERROR(SUM(J27:J32)/SUM(E27:E32),SUM(J27:J32)) -> 40,923 | P32: =IFERROR(SUM(K27:K32)/SUM(F27:F32),SUM(K27:K32)) -> 59,326 | Q32: =IFERROR(SUM(L27:L32)/SUM(G27:G32),SUM(L27:L32)) -> 54,813 | R32: =IFERROR(SUM(M27:M32)/SUM(H27:H32),SUM(M27:M32)) -> 15,871
B33: Q3 | D33: 4 | E33: 7 | F33: 5 | G33: 0 | H33: 0 | I33: 583,256 | J33: 390,020 | K33: 176,755 | L33: 84,735 | M33: 45,103 | N33: =IFERROR(SUM(I28:I33)/SUM(D28:D33),SUM(I28:I33)) -> 58,451 | O33: =IFERROR(SUM(J28:J33)/SUM(E28:E33),SUM(J28:J33)) -> 41,765 | P33: =IFERROR(SUM(K28:K33)/SUM(F28:F33),SUM(K28:K33)) -> 46,247 | Q33: =IFERROR(SUM(L28:L33)/SUM(G28:G33),SUM(L28:L33)) -> 67,317 | R33: =IFERROR(SUM(M28:M33)/SUM(H28:H33),SUM(M28:M33)) -> 16,075
D34: 8 | E34: 9 | F34: 2 | G34: 4 | H34: 4 | I34: 580,590 | J34: 372,207 | K34: 173,308 | L34: 62,798 | M34: 34,980 | N34: =IFERROR(SUM(I29:I34)/SUM(D29:D34),SUM(I29:I34)) -> 58,288 | O34: =IFERROR(SUM(J29:J34)/SUM(E29:E34),SUM(J29:J34)) -> 38,791 | P34: =IFERROR(SUM(K29:K34)/SUM(F29:F34),SUM(K29:K34)) -> 47,193 | Q34: =IFERROR(SUM(L29:L34)/SUM(G29:G34),SUM(L29:L34)) -> 57,521 | R34: =IFERROR(SUM(M29:M34)/SUM(H29:H34),SUM(M29:M34)) -> 16,889
D35: 10 | E35: 10 | F35: 2 | G35: 1 | H35: 1 | I35: 595,721 | J35: 369,736 | K35: 200,618 | L35: 53,136 | M35: 44,498 | N35: =IFERROR(SUM(I30:I35)/SUM(D30:D35),SUM(I30:I35)) -> 55,695 | O35: =IFERROR(SUM(J30:J35)/SUM(E30:E35),SUM(J30:J35)) -> 36,861 | P35: =IFERROR(SUM(K30:K35)/SUM(F30:F35),SUM(K30:K35)) -> 45,390 | Q35: =IFERROR(SUM(L30:L35)/SUM(G30:G35),SUM(L30:L35)) -> 67,737 | R35: =IFERROR(SUM(M30:M35)/SUM(H30:H35),SUM(M30:M35)) -> 19,456
B36: Q4 | D36: 7 | E36: 2 | F36: 2 | G36: 0 | H36: 0 | I36: 420,730 | J36: 246,423 | K36: 91,047 | L36: 26,026 | M36: 8,888 | N36: =IFERROR(SUM(I31:I36)/SUM(D31:D36),SUM(I31:I36)) -> 56,586 | O36: =IFERROR(SUM(J31:J36)/SUM(E31:E36),SUM(J31:J36)) -> 42,573 | P36: =IFERROR(SUM(K31:K36)/SUM(F31:F36),SUM(K31:K36)) -> 45,469 | Q36: =IFERROR(SUM(L31:L36)/SUM(G31:G36),SUM(L31:L36)) -> 65,701 | R36: =IFERROR(SUM(M31:M36)/SUM(H31:H36),SUM(M31:M36)) -> 18,654
D37: 6 | E37: 10 | F37: 4 | G37: 0 | H37: 0 | I37: 590,541 | J37: 349,900 | K37: 144,949 | L37: 47,326 | M37: 0 | N37: =IFERROR(SUM(I32:I37)/SUM(D32:D37),SUM(I32:I37)) -> 71,263 | O37: =IFERROR(SUM(J32:J37)/SUM(E32:E37),SUM(J32:J37)) -> 40,777 | P37: =IFERROR(SUM(K32:K37)/SUM(F32:F37),SUM(K32:K37)) -> 47,839 | Q37: =IFERROR(SUM(L32:L37)/SUM(G32:G37),SUM(L32:L37)) -> 70,163 | R37: =IFERROR(SUM(M32:M37)/SUM(H32:H37),SUM(M32:M37)) -> 23,855
D38: 10 | E38: 10 | F38: 1 | G38: 0 | H38: 0 | I38: 596,577 | J38: 346,820 | K38: 160,764 | L38: 32,161 | M38: 0 | N38: =IFERROR(SUM(I33:I38)/SUM(D33:D38),SUM(I33:I38)) -> 74,831 | O38: =IFERROR(SUM(J33:J38)/SUM(E33:E38),SUM(J33:J38)) -> 43,231 | P38: =IFERROR(SUM(K33:K38)/SUM(F33:F38),SUM(K33:K38)) -> 59,215 | Q38: =IFERROR(SUM(L33:L38)/SUM(G33:G38),SUM(L33:L38)) -> 61,236 | R38: =IFERROR(SUM(M33:M38)/SUM(H33:H38),SUM(M33:M38)) -> 26,694
A39: FY2021 | B39: Q1 | D39: 9 | E39: 6 | F39: 0 | G39: 1 | H39: 2 | I39: 596,313 | J39: 328,590 | K39: 174,642 | L39: 23,654 | M39: 35,956 | N39: =IFERROR(SUM(I34:I39)/SUM(D34:D39),SUM(I34:I39)) -> 67,609 | O39: =IFERROR(SUM(J34:J39)/SUM(E34:E39),SUM(J34:J39)) -> 42,844 | P39: =IFERROR(SUM(K34:K39)/SUM(F34:F39),SUM(K34:K39)) -> 85,939 | Q39: =IFERROR(SUM(L34:L39)/SUM(G34:G39),SUM(L34:L39)) -> 40,850 | R39: =IFERROR(SUM(M34:M39)/SUM(H34:H39),SUM(M34:M39)) -> 17,760
D40: 6 | E40: 4 | F40: 2 | G40: 1 | H40: 1 | I40: 596,598 | J40: 338,169 | K40: 176,482 | L40: 23,486 | M40: 21,963 | N40: =IFERROR(SUM(I35:I40)/SUM(D35:D40),SUM(I35:I40)) -> 70,760 | O40: =IFERROR(SUM(J35:J40)/SUM(E35:E40),SUM(J35:J40)) -> 47,134 | P40: =IFERROR(SUM(K35:K40)/SUM(F35:F40),SUM(K35:K40)) -> 86,227 | Q40: =IFERROR(SUM(L35:L40)/SUM(G35:G40),SUM(L35:L40)) -> 68,596 | R40: =IFERROR(SUM(M35:M40)/SUM(H35:H40),SUM(M35:M40)) -> 27,826
D41: 7 | E41: 9 | F41: 3 | G41: 0 | H41: 1 | I41: 584,024 | J41: 355,971 | K41: 195,896 | L41: 33,979 | M41: 45,729 | N41: =IFERROR(SUM(I36:I41)/SUM(D36:D41),SUM(I36:I41)) -> 75,217 | O41: =IFERROR(SUM(J36:J41)/SUM(E36:E41),SUM(J36:J41)) -> 47,948 | P41: =IFERROR(SUM(K36:K41)/SUM(F36:F41),SUM(K36:K41)) -> 78,648 | Q41: =IFERROR(SUM(L36:L41)/SUM(G36:G41),SUM(L36:L41)) -> 93,316 | R41: =IFERROR(SUM(M36:M41)/SUM(H36:H41),SUM(M36:M41)) -> 28,134
B42: Q2 | D42: 5 | E42: 8 | F42: 5 | G42: 1 | H42: 2 | I42: 596,310 | J42: 383,235 | K42: 191,539 | L42: 26,623 | M42: 25,856 | N42: =IFERROR(SUM(I37:I42)/SUM(D37:D42),SUM(I37:I42)) -> 82,799 | O42: =IFERROR(SUM(J37:J42)/SUM(E37:E42),SUM(J37:J42)) -> 44,738 | P42: =IFERROR(SUM(K37:K42)/SUM(F37:F42),SUM(K37:K42)) -> 69,618 | Q42: =IFERROR(SUM(L37:L42)/SUM(G37:G42),SUM(L37:L42)) -> 62,410 | R42: =IFERROR(SUM(M37:M42)/SUM(H37:H42),SUM(M37:M42)) -> 21,584
D43: 7 | E43: 5 | F43: 3 | G43: 0 | H43: 2 | I43: 595,465 | J43: 383,386 | K43: 216,334 | L43: 19,474 | M43: 71,468 | N43: =IFERROR(SUM(I38:I43)/SUM(D38:D43),SUM(I38:I43)) -> 81,029 | O43: =IFERROR(SUM(J38:J43)/SUM(E38:E43),SUM(J38:J43)) -> 50,861 | P43: =IFERROR(SUM(K38:K43)/SUM(F38:F43),SUM(K38:K43)) -> 79,690 | Q43: =IFERROR(SUM(L38:L43)/SUM(G38:G43),SUM(L38:L43)) -> 53,126 | R43: =IFERROR(SUM(M38:M43)/SUM(H38:H43),SUM(M38:M43)) -> 25,122
D44: 13 | E44: 3 | F44: 1 | G44: 0 | H44: 4 | I44: 581,293 | J44: 348,596 | K44: 185,940 | L44: 36,201 | M44: 67,993 | N44: =IFERROR(SUM(I39:I44)/SUM(D39:D44),SUM(I39:I44)) -> 75,532 | O44: =IFERROR(SUM(J39:J44)/SUM(E39:E44),SUM(J39:J44)) -> 61,084 | P44: =IFERROR(SUM(K39:K44)/SUM(F39:F44),SUM(K39:K44)) -> 81,488 | Q44: =IFERROR(SUM(L39:L44)/SUM(G39:G44),SUM(L39:L44)) -> 54,472 | R44: =IFERROR(SUM(M39:M44)/SUM(H39:H44),SUM(M39:M44)) -> 22,414
B45: Q3 | D45: 6 | E45: 4 | F45: 2 | G45: 0 | H45: 5 | I45: 545,615 | J45: 348,755 | K45: 175,951 | L45: 39,256 | M45: 73,397 | N45: =IFERROR(SUM(I40:I45)/SUM(D40:D45),SUM(I40:I45)) -> 79,530 | O45: =IFERROR(SUM(J40:J45)/SUM(E40:E45),SUM(J40:J45)) -> 65,397 | P45: =IFERROR(SUM(K40:K45)/SUM(F40:F45),SUM(K40:K45)) -> 71,384 | Q45: =IFERROR(SUM(L40:L45)/SUM(G40:G45),SUM(L40:L45)) -> 89,510 | R45: =IFERROR(SUM(M40:M45)/SUM(H40:H45),SUM(M40:M45)) -> 20,427
D46: 6 | E46: 6 | F46: 7 | G46: 1 | H46: 1 | I46: 540,447 | J46: 349,381 | K46: 173,276 | L46: 42,991 | M46: 49,862 | N46: =IFERROR(SUM(I41:I46)/SUM(D41:D46),SUM(I41:I46)) -> 78,254 | O46: =IFERROR(SUM(J41:J46)/SUM(E41:E46),SUM(J41:J46)) -> 61,981 | P46: =IFERROR(SUM(K41:K46)/SUM(F41:F46),SUM(K41:K46)) -> 54,235 | Q46: =IFERROR(SUM(L41:L46)/SUM(G41:G46),SUM(L41:L46)) -> 99,262 | R46: =IFERROR(SUM(M41:M46)/SUM(H41:H46),SUM(M41:M46)) -> 22,287
D47: 7 | E47: 8 | F47: 4 | G47: 0 | H47: 2 | I47: 630,785 | J47: 425,262 | K47: 194,790 | L47: 39,768 | M47: 65,090 | N47: =IFERROR(SUM(I42:I47)/SUM(D42:D47),SUM(I42:I47)) -> 79,316 | O47: =IFERROR(SUM(J42:J47)/SUM(E42:E47),SUM(J42:J47)) -> 65,842 | P47: =IFERROR(SUM(K42:K47)/SUM(F42:F47),SUM(K42:K47)) -> 51,720 | Q47: =IFERROR(SUM(L42:L47)/SUM(G42:G47),SUM(L42:L47)) -> 102,157 | R47: =IFERROR(SUM(M42:M47)/SUM(H42:H47),SUM(M42:M47)) -> 22,104
B48: Q4 | D48: 13 | E48: 4 | F48: 2 | G48: 0 | H48: 4 | I48: 571,181 | J48: 333,259 | K48: 169,979 | L48: 46,103 | M48: 53,896 | N48: =IFERROR(SUM(I43:I48)/SUM(D43:D48),SUM(I43:I48)) -> 66,631 | O48: =IFERROR(SUM(J43:J48)/SUM(E43:E48),SUM(J43:J48)) -> 72,955 | P48: =IFERROR(SUM(K43:K48)/SUM(F43:F48),SUM(K43:K48)) -> 58,751 | Q48: =IFERROR(SUM(L43:L48)/SUM(G43:G48),SUM(L43:L48)) -> 223,793 | R48: =IFERROR(SUM(M43:M48)/SUM(H43:H48),SUM(M43:M48)) -> 21,206
D49: 5 | E49: 6 | F49: 4 | G49: 0 | H49: 4 | I49: 618,948 | J49: 360,916 | K49: 178,469 | L49: 43,850 | M49: 46,572 | N49: =IFERROR(SUM(I44:I49)/SUM(D44:D49),SUM(I44:I49)) -> 69,765 | O49: =IFERROR(SUM(J44:J49)/SUM(E44:E49),SUM(J44:J49)) -> 69,876 | P49: =IFERROR(SUM(K44:K49)/SUM(F44:F49),SUM(K44:K49)) -> 53,920 | Q49: =IFERROR(SUM(L44:L49)/SUM(G44:G49),SUM(L44:L49)) -> 248,169 | R49: =IFERROR(SUM(M44:M49)/SUM(H44:H49),SUM(M44:M49)) -> 17,841
D50: 7 | E50: 6 | F50: 5 | G50: 1 | H50: 4 | I50: 586,914 | J50: 302,937 | K50: 138,335 | L50: 32,329 | M50: 47,518 | N50: =IFERROR(SUM(I45:I50)/SUM(D45:D50),SUM(I45:I50)) -> 79,407 | O50: =IFERROR(SUM(J45:J50)/SUM(E45:E50),SUM(J45:J50)) -> 62,368 | P50: =IFERROR(SUM(K45:K50)/SUM(F45:F50),SUM(K45:K50)) -> 42,950 | Q50: =IFERROR(SUM(L45:L50)/SUM(G45:G50),SUM(L45:L50)) -> 122,149 | R50: =IFERROR(SUM(M45:M50)/SUM(H45:H50),SUM(M45:M50)) -> 16,817
